bitfinex/quotes_ETHUSD_20250331
["timestamp","ask_amount","ask_price","bid_price","bid_amount"]
[1743452217220,4.56358237,1833.9,1833.7,6.20383]
[1743452217729,10.01646237,1833.9,1833.7,0.7504]
[1743452218020,6.64248961,1833.9,1833.6,5.45364]
[1743452218334,4.56358237,1833.7,1833.6,10.90728]
[1743452218539,4.56358237,1833.7,1833.5,6.24234]
[1743452218901,4.56358237,1833.7,1833.6,5.45375]
[1743452219301,4.56358237,1833.7,1833.6,5.6573764]
[1743452222641,4.56358237,1833.7,1833.6,0.2036264]
[1743452223122,4.56358237,1833.7,1833.6,5.6573764]
[1743452225612,1.78084803,1834.7,1834.0,5.45245]
[1743452225814,4.56358237,1834.3,1834.1,5.45207]
[1743452226014,5.90694824,1834.7,1834.3,5.45155]
[1743452226214,4.56358237,1834.4,1834.3,6.28165]
[1743452229139,0.55,1834.3,1833.7,16.4089188]
[1743452229343,4.56358237,1833.8,1833.7,6.2088]
[1743452229636,0.45635824,1834.4,1833.8,5.4529]
[1743452229808,4.56358237,1834.2,1833.9,6.81203]
[1743452230005,4.56358237,1834.0,1833.9,6.26674]
[1743452234244,4.56358237,1834.2,1834.1,5.45221]
[1743452234542,4.56358237,1834.2,1834.0,10.905]
[1743452234753,5.318,1834.5,1834.2,5.45173]
[1743452234958,4.56358237,1834.3,1834.2,6.24263]
[1743452235153,4.56358237,1834.3,1834.2,0.7909]
[1743452236520,4.56358237,1834.3,1834.1,5.45214]
[1743452237146,4.56358237,1834.3,1834.2,5.45196]
[1743452238260,4.56358237,1834.5,1834.3,5.45161]
[1743452238555,11.22295824,1835.0,1834.6,5.45058]
[1743452238757,4.56358237,1834.7,1834.6,5.45058]
[1743452238936,4.56358237,1834.7,1834.5,6.28201]
[1743452239524,4.56358237,1834.7,1834.5,6.33651441]
[1743452239722,4.56358237,1834.7,1834.5,0.831]
[1743452239958,10.47044061,1834.7,1834.3,16.4826588]
[1743452240128,4.56358237,1834.5,1834.3,11.0309988]
[1743452240460,4.56358237,1834.5,1834.2,15.6519088]
[1743452240627,4.56358237,1834.3,1834.2,18.6519088]
[1743452241474,4.56358237,1834.3,1834.2,10.1999988]
[1743452241833,5.01994061,1834.3,1834.1,0.831]
[1743452242226,4.56358237,1834.3,1834.1,0.831]
[1743452242472,4.56358237,1834.3,1834.1,6.28316]
[1743452245276,4.56358237,1834.3,1834.1,0.831]
[1743452247178,4.56358237,1834.3,1834.0,5.45244]
[1743452247376,4.56358237,1834.1,1833.9,6.24693]
[1743452247692,4.56358237,1834.1,1833.9,11.75416198]
[1743452247999,4.56358237,1834.1,1833.9,11.69966]
[1743452248296,4.56358237,1834.1,1833.9,6.24691]
[1743452248443,4.56358237,1834.1,1833.9,11.75413198]
[1743452248649,4.56358237,1834.1,1833.9,6.2469]
[1743452248852,4.56358237,1834.1,1833.9,6.30142198]
[1743452249159,4.56358237,1834.1,1833.9,3.7942]
[1743452249374,5.01994061,1834.1,1833.9,3.0]
[1743452249753,5.01994061,1834.1,1833.9,8.4528]
[1743452249982,5.01994061,1834.1,1833.8,6.26982]
[1743452250281,4.56358237,1833.9,1833.8,6.26982]
[1743452250668,4.56358237,1833.9,1833.7,15.6534188]
[1743452251781,4.56358237,1833.9,1833.7,15.6532988]
[1743452252001,4.56358237,1833.9,1833.8,5.45315]
[1743452253768,4.56358237,1833.9,1833.7,5.4533]
[1743452254169,4.56358237,1833.9,1833.8,5.45315]
[1743452255581,4.56358237,1833.9,1833.7,10.90663]
[1743452256200,4.56358237,1833.9,1833.7,5.4533]
[1743452256414,4.56358237,1833.9,1833.8,5.45315]
[1743452256622,5.316,1834.2,1833.9,5.45286]
[1743452256918,4.56358237,1834.4,1834.3,5.45167]
[1743452258369,4.56358237,1834.4,1834.2,6.22704]
[1743452259009,4.56358237,1834.4,1834.2,11.67886]
[1743452259970,4.56358237,1834.4,1834.3,5.45167]
[1743452261214,4.56358237,1834.4,1834.3,6.619539]
[1743452261378,4.56358237,1834.4,1834.3,5.45167]
[1743452263171,0.41142178,1835.0,1834.5,0.8078]
[1743452263376,4.56358237,1834.7,1834.6,5.45057]
[1743452267028,4.56358237,1834.7,1834.5,6.25875]
[1743452267814,4.56358237,1834.7,1834.6,5.45077]
[1743452268831,4.56358237,1834.7,1834.5,5.45095]
[1743452269745,4.56358237,1834.7,1834.6,5.45077]
[1743452270291,5.7213662,1835.0,1834.7,5.45033]
[1743452270598,4.56358237,1834.8,1834.7,5.45033]
[1743452271397,4.56358237,1835.2,1834.8,5.44998]
[1743452271597,4.56358237,1835.1,1834.7,5.45048]
[1743452271830,4.56358237,1835.1,1835.0,5.44959]
[1743452273958,4.56358237,1835.1,1834.9,5.44987]
[1743452274259,4.56358237,1835.1,1834.8,21.1001788]
[1743452274461,10.89775,1835.3,1834.9,5.44986]
[1743452274670,5.44881,1835.3,1834.9,10.89946]
[1743452275263,5.44917,1835.2,1834.8,15.6501188]
[1743452275568,4.56358237,1834.9,1834.8,15.6501188]
[1743452275728,4.56358237,1834.9,1834.8,10.1999988]
[1743452276646,4.56358237,1834.9,1834.7,10.90073]
[1743452277020,4.56358237,1834.9,1834.7,5.45035]
[1743452277235,4.56358237,1834.9,1834.7,10.90073]
[1743452277980,4.56358237,1834.9,1834.7,5.45035]
[1743452278482,4.56358237,1834.9,1834.6,16.4271288]
[1743452278637,4.56358237,1834.7,1834.6,14.67779]
[1743452280262,4.56358237,1834.7,1834.6,9.22706]
[1743452280467,4.56358237,1834.7,1834.6,6.22706]
[1743452283380,4.56358237,1834.7,1834.5,5.45094]
[1743452283568,4.56358237,1834.7,1834.5,5.45093]
[1743452283969,4.56358237,1834.7,1834.5,10.90191]
[1743452284279,4.56358237,1834.7,1834.6,5.45077]
[1743452286660,1.66309985,1835.3,1835.0,5.44955]
[1743452286871,0.41975854,1835.4,1835.2,5.44879]
[1743452286872,4.56358237,1835.4,1835.2,5.44879]
[1743452287053,4.56358237,1835.4,1835.1,5.4492]
[1743452287879,4.56358237,1835.4,1835.2,5.44896]
[1743452289286,4.56358237,1835.4,1835.2,5.4489]
[1743452289467,4.56358237,1835.5,1835.3,6.27256]
[1743452289779,4.56358237,1835.5,1835.2,5.44895]
[1743452289993,4.56358237,1835.5,1835.2,10.95230416]
[1743452290205,4.56358237,1835.5,1835.3,5.44853]
[1743452290567,4.56358237,1835.5,1835.3,10.89711]
[1743452291059,4.56358237,1835.4,1835.3,10.89711]
[1743452291266,4.56358237,1835.4,1835.3,5.44853]
[1743452294273,4.56358237,1835.4,1835.2,21.0978188]
[1743452294584,4.56358237,1835.4,1835.2,10.1999988]
[1743452294585,10.01200237,1835.4,1835.2,10.1999988]
[1743452294804,5.4487,1835.3,1835.2,10.1999988]
[1743452295889,5.449,1835.2,1834.9,5.44985]
[1743452296073,4.56358237,1835.0,1834.9,5.44985]
[1743452297287,4.56358237,1835.0,1834.8,10.95475548]
[1743452297597,4.56358237,1835.0,1834.8,10.95460573]
[1743452299394,4.56358237,1835.0,1834.8,5.50452573]
[1743452299692,4.56358237,1835.0,1834.8,5.45003]
[1743452299904,4.56358237,1835.0,1834.8,5.50452578]
[1743452300274,4.56358237,1835.0,1834.7,11.66502]
[1743452300577,4.56358237,1834.8,1834.7,11.66502]
[1743452303075,4.56358237,1834.8,1834.7,12.9320991]
[1743452303275,4.56358237,1834.8,1834.7,11.66502]
[1743452305075,4.56358237,1835.0,1834.8,5.4501]
[1743452305778,4.56358237,1835.0,1834.8,5.45006]
[1743452306403,4.56358237,1835.0,1834.7,11.66512]
[1743452307199,4.56358237,1835.0,1834.8,5.45013]
[1743452307403,4.56358237,1835.0,1834.8,10.90019]
[1743452307603,4.56358237,1835.0,1834.9,5.44988]
[1743452308335,4.56358237,1835.0,1834.9,6.25438]
[1743452309344,5.31,1835.2,1834.9,6.25438]
[1743452309345,4.56358237,1835.2,1835.1,5.44909]
[1743452310033,4.56358237,1835.2,1835.1,6.26549]
[1743452313147,4.56358237,1835.4,1835.3,5.44854]
[1743452313508,0.05,1835.9,1835.4,0.8131]
[1743452313737,0.05,1835.9,1835.8,5.44721]
[1743452313924,0.05,1835.9,1835.6,0.8131]
[1743452313925,0.05,1835.9,1835.7,10.94935629]
[1743452314126,4.56358237,1835.8,1835.7,5.44741]
[1743452314324,4.56358237,1835.8,1835.6,15.6476788]
[1743452314648,4.56358237,1835.8,1835.6,21.0953588]
[1743452315346,4.56358237,1835.8,1835.6,15.6476788]
[1743452315915,4.56358237,1835.8,1835.6,21.0953288]
[1743452316108,0.05,1835.9,1835.8,5.44721]
[1743452316317,4.61358237,1835.9,1835.8,5.44721]
[1743452316643,0.05,1835.9,1835.8,5.50167648]
[1743452316843,0.05,1835.9,1835.8,16.50887528]
[1743452317140,0.05,1835.9,1835.8,16.4544088]
[1743452320428,0.05,1835.9,1835.8,15.6472088]
[1743452320629,0.05,1835.9,1835.8,18.6472088]
[1743452320854,0.05,1835.9,1835.8,13.1999988]
[1743452321263,0.05,1835.9,1835.8,10.1999988]
[1743452321459,0.05,1835.9,1835.7,10.89476]
[1743452321643,4.56358237,1835.8,1835.7,5.44738]
[1743452322530,4.56358237,1835.8,1835.6,11.68079]
[1743452322728,4.56358237,1835.8,1835.6,5.4477]
[1743452323165,0.05,1835.9,1835.6,10.94980204]
[1743452323357,4.56358237,1835.7,1835.6,10.94980204]
[1743452323533,4.56358237,1835.7,1835.6,10.89533]
[1743452324863,4.56358237,1835.7,1835.6,5.44763]
[1743452327068,4.56358237,1835.7,1835.5,5.44807]
[1743452327069,4.56358237,1835.7,1835.5,5.44796]
[1743452327240,4.56358237,1835.7,1835.5,10.89591]
[1743452327764,4.56358237,1835.7,1835.5,5.44795]
[1743452328064,4.56358237,1835.7,1835.5,10.89595]
[1743452329247,4.61358237,1835.9,1835.5,5.44799]
[1743452329447,4.61358237,1835.9,1835.8,5.44721]
[1743452329761,0.05,1835.9,1835.8,5.50167721]
[1743452330750,0.05,1835.9,1835.8,5.44721]
[1743452331879,0.05,1835.9,1835.8,5.50167195]
[1743452332171,0.05,1835.9,1835.8,19.45897075]
[1743452332372,0.05,1835.9,1835.8,19.4045088]
[1743452335142,0.05,1835.9,1835.8,20.51198856]
[1743452335779,0.05,1835.9,1835.8,20.9273753]
[1743452336749,0.05,1835.9,1835.8,20.51198856]
[1743452337885,0.05,1835.9,1835.8,21.77906766]
[1743452338292,0.05,1835.9,1835.8,20.51198856]
[1743452339492,0.05,1835.9,1835.8,21.02055354]
[1743452342091,0.05,1835.9,1835.8,21.42781418]
[1743452342756,0.05,1835.9,1835.8,21.93689016]
[1743452347333,0.05,1835.9,1835.8,21.42781418]
[1743452348502,0.05,1835.9,1835.8,20.67051418]
[1743452349603,0.05,1835.9,1835.8,16.56303442]
[1743452350374,0.05,1835.9,1835.8,15.6472088]
[1743452354550,0.05,1835.9,1835.7,5.44738]
[1743452354698,4.56358237,1835.8,1835.7,8.44738]
[1743452355304,5.02494061,1835.8,1835.7,8.44738]
[1743452355909,5.02494061,1835.8,1835.7,5.44738]
[1743452356802,5.02494061,1835.8,1835.6,5.44775]
[1743452357007,5.02494061,1835.8,1835.5,15.6479588]
[1743452357239,4.56358237,1835.6,1835.5,15.6479588]
[1743452358244,4.56358237,1835.6,1835.5,21.0959388]
[1743452360073,4.56358237,1835.6,1835.5,15.6479588]
[1743452361263,0.05,1835.9,1835.8,5.44721]
[1743452361464,4.61358237,1835.9,1835.8,5.44721]
[1743452361665,0.05,1835.9,1835.8,5.44721]
[1743452361968,0.05,1835.9,1835.8,6.2717743]
[1743452362569,0.05,1835.9,1835.8,6.21731]
[1743452363732,0.05,1835.9,1835.8,5.44721]
[1743452365257,0.05,1835.9,1835.8,5.5016723]
[1743452365425,0.05,1835.9,1835.8,5.44721]
[1743452367555,0.05,1835.9,1835.8,15.6472088]
[1743452367751,0.05,1835.9,1835.8,16.4325088]
[1743452368154,0.05,1835.9,1835.8,19.4325088]
[1743452368654,1e-05,1835.9,1835.8,19.4325088]
[1743452369045,1e-05,1835.9,1835.8,19.8404348]
[1743452369224,1e-05,1835.9,1835.8,20.35032257]
[1743452372334,1e-05,1835.9,1835.8,21.43885072]
[1743452378881,1e-05,1835.9,1835.8,17.65355072]
[1743452379783,1e-05,1835.9,1835.8,20.65355072]
[1743452380868,1e-05,1835.9,1835.8,20.14366295]
[1743452382240,1e-05,1835.9,1835.8,19.73573695]
[1743452389848,1e-05,1835.9,1835.8,20.53093695]
[1743452390392,1e-05,1835.9,1835.8,21.04015816]
[1743452391177,1e-05,1835.9,1835.8,21.4476857]
[1743452393754,1e-05,1835.9,1835.8,20.6524857]
[1743452394677,1e-05,1835.9,1835.8,16.56395755]
[1743452394904,0.45636924,1835.9,1835.8,0.91674875]
[1743452395061,5.90327924,1835.9,1835.8,0.91674875]
[1743452395248,11.20227924,1835.9,1835.8,0.91674875]
[1743452396092,11.20227924,1835.9,1835.8,0.50922121]
[1743452396969,11.20227924,1835.9,1835.5,5.44801]
[1743452397168,4.56358237,1835.6,1835.5,5.44801]
[1743452397564,1e-05,1835.9,1835.6,5.4478]
[1743452397766,4.56359237,1835.9,1835.8,5.44721]
[1743452410115,4.56359237,1835.9,1835.7,5.44738]
[1743452410288,5.01995161,1835.9,1835.6,5.44767]
[1743452410490,0.45636924,1835.9,1835.7,5.44751]
[1743452410679,1e-05,1835.9,1835.7,5.44751]
[1743452411596,1e-05,1835.9,1835.7,10.8949]
[1743452411797,4.56358237,1835.8,1835.7,10.8949]
[1743452411985,4.56358237,1835.8,1835.7,5.44739]
[1743452412374,4.56358237,1835.8,1835.6,10.8955]
[1743452412881,4.56358237,1835.8,1835.6,10.8954]
[1743452414091,4.56358237,1835.8,1835.7,5.44751]
[1743452416109,4.56358237,1835.8,1835.6,5.44768]
[1743452416677,4.56358237,1835.8,1835.6,10.89536]
[1743452418101,4.56358237,1835.8,1835.7,5.44751]
[1743452421612,4.56358237,1835.8,1835.6,5.44766]
[1743452421817,10.46724161,1835.8,1835.4,21.0966188]
[1743452422115,4.56358237,1835.6,1835.4,21.0966188]
[1743452422503,4.56358237,1835.6,1835.5,5.4481]
[1743452425720,4.56358237,1835.6,1835.4,10.89655]
[1743452426930,4.56358237,1835.6,1835.4,5.44827]
[1743452427230,5.56470161,1835.6,1835.3,5.44859]
[1743452427442,4.56358237,1835.4,1835.3,5.44859]
[1743452430531,1e-05,1835.9,1835.8,5.44721]
[1743452431107,1e-05,1835.9,1835.8,6.26361]
[1743452431417,1e-05,1835.9,1835.8,19.4636088]
[1743452431937,1e-05,1835.9,1835.8,19.71974092]
[1743452432143,1e-05,1835.9,1835.8,20.12761957]
[1743452433037,1e-05,1835.9,1835.8,20.63752825]
[1743452435333,1e-05,1835.9,1835.8,20.2296496]
[1743452435904,1e-05,1835.9,1835.8,19.71974092]
[1743452438136,1e-05,1835.9,1835.8,20.79699132]
[1743452443328,1e-05,1835.9,1835.8,19.98059132]
[1743452447125,1e-05,1835.9,1835.8,18.90334092]
[1743452458931,1e-05,1835.9,1835.8,15.90334092]
[1743452459536,0.45636924,1835.9,1835.8,5.70334212]
[1743452459736,0.45636924,1835.9,1835.8,0.25613212]
[1743452460167,0.45636924,1835.9,1835.8,5.70334212]
[1743452460464,0.45636924,1835.9,1835.8,0.25613212]
[1743452461747,5.90327924,1835.9,1835.8,0.25613212]
[1743452462150,5.90327924,1835.9,1835.6,15.6477488]
[1743452462338,4.56358237,1835.7,1835.6,15.6477488]
[1743452464275,4.56358237,1835.7,1835.6,5.44775]
[1743452465979,4.56358237,1835.7,1835.6,5.70179404]
[1743452467179,4.56359237,1835.9,1835.8,5.44721]
[1743452467676,1e-05,1835.9,1835.8,5.70009858]
[1743452468180,1e-05,1835.9,1835.8,5.75456413]
[1743452468384,1e-05,1835.9,1835.8,5.70009858]
[1743452469280,1e-05,1835.9,1835.8,8.75456535]
[1743452469481,1e-05,1835.9,1835.8,9.57786535]
[1743452469656,1e-05,1835.9,1835.8,19.77786415]
[1743452469852,1e-05,1835.9,1835.8,19.72339738]
[1743452470283,1e-05,1835.9,1835.8,20.13126531]
[1743452473877,1e-05,1835.9,1835.8,20.53384109]
[1743452475489,1e-05,1835.9,1835.8,21.60159191]
[1743452476986,1e-05,1835.9,1835.8,53.01959191]
[1743452482863,0.05,1836.9,1836.8,5.44425]
[1743452483069,4.61358237,1836.9,1836.8,5.44425]
[1743452483291,0.05,1836.9,1836.8,5.44425]
[1743452483595,0.05,1836.9,1836.8,5.74333977]
[1743452484184,5.91043397,1837.9,1837.4,5.44219]
[1743452484384,4.56358237,1837.5,1837.4,5.44219]
[1743452484599,4.56358237,1837.5,1837.3,5.44269]
[1743452484898,4.56358237,1837.4,1837.2,5.44279]
[1743452485361,4.56358237,1837.4,1837.2,10.88568]
[1743452485565,4.56358237,1837.4,1837.2,5.44279]
[1743452485762,5.01994061,1837.4,1837.2,5.44279]
[1743452486596,5.01994061,1837.4,1837.1,15.6431888]
[1743452486895,4.56358237,1837.2,1837.1,10.1999888]
[1743452487099,5.44359,1837.1,1836.6,5.44478]
[1743452487269,4.56358237,1836.8,1836.6,21.0894788]
[1743452488495,4.56358237,1836.8,1836.6,21.0894388]
[1743452488996,4.56358237,1836.8,1836.7,5.44454]
[1743452489593,5.01994061,1836.8,1836.6,15.6446988]
[1743452489895,10.46431061,1836.8,1836.4,8.44537]
[1743452490069,4.56358237,1836.6,1836.4,5.44531]
[1743452490600,4.56358237,1836.6,1836.5,0.20550635]
[1743452490808,5.01994061,1836.6,1836.5,0.20550635]
[1743452496104,5.01994061,1836.6,1836.5,5.65064635]
[1743452496306,4.56358237,1836.6,1836.5,5.65064635]
[1743452496972,4.56358237,1836.9,1836.7,5.44454]
[1743452497193,4.56358237,1837.0,1836.8,5.44409]
[1743452497505,4.56358237,1837.0,1836.8,5.6483747]
[1743452497700,5.01994061,1837.0,1836.8,5.6483747]
[1743452499413,5.01994061,1837.0,1836.8,11.0924747]
[1743452499610,5.01994061,1837.0,1836.8,5.6483747]
[1743452499994,5.01994061,1837.0,1836.8,11.0925247]
[1743452500191,5.01994061,1837.0,1836.8,5.6483747]
[1743452500406,5.01994061,1837.0,1836.8,11.0924647]
[1743452500616,5.01994061,1837.0,1836.8,5.6483747]
[1743452502118,5.01994061,1837.0,1836.9,5.44395]
[1743452502427,5.01994061,1837.0,1836.8,5.6483747]
[1743452502589,5.01994061,1837.0,1836.9,0.20462053]
[1743452502793,5.01994061,1837.0,1836.8,10.88822]
[1743452502985,5.01994061,1837.0,1836.8,5.44409]
[1743452503213,5.01994061,1837.0,1836.9,0.20462053]
[1743452503518,5.01994061,1837.0,1836.8,10.88821]
[1743452503693,4.56358237,1837.0,1836.9,0.20462053]
[1743452504201,4.56358237,1837.0,1836.8,5.44409]
[1743452504409,5.89892824,1837.4,1837.0,5.44352]
[1743452504582,5.89892824,1837.4,1836.9,0.20462053]
[1743452504583,0.45635824,1837.4,1837.2,5.44296]
[1743452504784,4.56358237,1837.3,1837.2,5.44296]
[1743452505219,4.56358237,1837.3,1837.1,5.44334]
[1743452505607,5.06557643,1837.3,1837.1,5.44334]
[1743452506216,5.06557643,1837.3,1837.2,0.20212534]
[1743452507291,10.50833643,1837.3,1837.2,0.20212534]
[1743452507591,5.06557643,1837.3,1837.0,5.44353]
[1743452507791,4.56358237,1837.1,1837.0,5.44353]
[1743452511515,4.56358237,1837.1,1836.9,15.6438288]
[1743452511696,5.01994061,1837.1,1836.9,10.1999888]
[1743452512631,10.46335061,1837.1,1836.9,10.1999888]
[1743452513126,5.01994061,1837.1,1836.9,10.1999888]
[1743452514101,5.01994061,1837.1,1836.8,5.4441]
[1743452514294,4.56358237,1836.9,1836.8,5.4441]
[1743452517329,4.56358237,1836.9,1836.8,5.44425]
[1743452519525,4.56358237,1836.9,1836.7,5.44443]
[1743452519731,4.56358237,1836.9,1836.7,10.88885]
[1743452520129,4.56358237,1836.9,1836.8,5.44425]
[1743452521603,4.56358237,1836.9,1836.7,10.88884]
[1743452522517,4.56358237,1836.9,1836.7,5.44442]
[1743452522732,4.56358237,1836.9,1836.7,10.88885]
[1743452522916,4.56358237,1836.9,1836.7,5.44442]
[1743452523325,4.56358237,1836.9,1836.8,5.44425]
[1743452524436,4.56358237,1836.9,1836.7,10.88886]
[1743452524731,4.56358237,1836.9,1836.8,5.44425]
[1743452529157,4.56358237,1836.9,1836.7,5.44442]
[1743452529446,4.56358237,1836.9,1836.8,5.44425]
[1743452533811,4.56358237,1836.9,1836.7,10.88881]
[1743452534034,4.56358237,1836.9,1836.7,5.4444]
[1743452534335,4.56358237,1836.9,1836.7,10.8888]
[1743452534637,4.56358237,1836.9,1836.7,10.88883]
[1743452534840,4.56358237,1836.9,1836.7,10.88882]
[1743452536531,4.56358237,1836.9,1836.8,5.44425]
[1743452537642,4.56358237,1836.9,1836.7,5.4444]
[1743452538031,5.44367,1837.0,1836.6,16.4623988]
[1743452538236,4.56358237,1836.7,1836.6,5.44475]
[1743452538736,4.56358237,1836.7,1836.5,5.44508]
[1743452539249,4.56358237,1836.7,1836.6,5.44484]
[1743452541750,5.44504,1836.6,1836.2,16.4665088]
[1743452541950,4.56358237,1836.3,1836.2,5.44585]
[1743452542147,4.56358237,1836.3,1836.0,15.6465688]
[1743452542348,4.56358237,1836.1,1836.0,15.6465688]
[1743452542573,4.56358237,1836.1,1836.0,5.44658]
[1743452544919,10.7296,1836.4,1836.1,5.44632]
[1743452545164,4.56358237,1836.2,1836.1,5.44632]
[1743452546023,5.284,1836.5,1836.4,5.44543]
[1743452546232,9.84758237,1836.5,1836.4,5.44543]
[1743452546442,4.56358237,1836.5,1836.4,5.44543]
[1743452547070,4.56358237,1836.5,1836.2,5.44597]
[1743452547379,4.56358237,1836.5,1836.1,16.3968988]
[1743452547380,4.56358237,1836.3,1836.1,16.3968988]
[1743452547544,4.56358237,1836.3,1836.1,15.6461988]
[1743452549237,4.56358237,1836.3,1836.1,5.44621]
[1743452549865,4.56358237,1836.3,1836.1,10.8924]
[1743452550036,4.56358237,1836.3,1836.2,5.44602]
[1743452551269,6.44602224,1836.5,1836.2,5.44602]
[1743452551435,4.56358237,1836.3,1836.2,5.44602]
[1743452552738,4.56358237,1836.3,1836.1,10.89239]
[1743452553078,4.56358237,1836.3,1836.2,5.44602]
[1743452553379,4.56358237,1836.3,1836.1,5.44619]
[1743452553680,4.56358237,1836.3,1836.1,10.89239]
[1743452553899,4.56358237,1836.3,1836.2,5.44602]
[1743452558166,5.44466,1836.7,1836.4,5.44543]
[1743452558384,4.56358237,1836.5,1836.4,5.44543]
[1743452560455,4.56358237,1836.5,1836.2,5.4459]
[1743452560645,4.56358237,1836.3,1836.2,5.4459]
[1743452561870,4.56358237,1836.3,1836.2,6.2723]
[1743452562259,4.56358237,1836.6,1836.3,5.44573]
[1743452562460,8.743,1837.4,1836.7,0.8264]
[1743452562461,5.44336,1837.1,1836.7,0.8264]
[1743452562673,4.56358237,1836.9,1836.8,5.44421]
[1743452565845,5.44337,1837.1,1836.8,5.44421]
[1743452566046,4.56358237,1836.9,1836.8,10.8883]
[1743452566545,4.56358237,1836.9,1836.8,5.44409]
[1743452566745,4.56358237,1836.9,1836.7,0.8264]
[1743452567171,4.56358237,1836.9,1836.6,10.1999888]
[1743452567374,4.56358237,1836.7,1836.6,10.1999888]
[1743452567579,4.56358237,1836.7,1836.3,14.5085]
[1743452567580,4.56358237,1836.7,1836.3,13.9797888]
[1743452567871,5.44426,1836.8,1836.3,10.9797888]
[1743452567872,4.56358237,1836.5,1836.3,10.9797888]
[1743452568171,4.56358237,1836.5,1836.3,10.1999888]
[1743452569579,10.00877237,1836.5,1836.3,10.1999888]
[1743452570147,15.45408237,1836.5,1836.3,10.1999888]
[1743452570473,5.44575,1836.3,1836.0,3.0]
[1743452570677,4.56358237,1836.2,1836.0,3.0]
[1743452573353,10.00961237,1836.2,1836.0,3.0]
[1743452575282,10.00961237,1836.2,1835.9,11.0162888]
[1743452575481,4.56358237,1836.0,1835.9,10.1999888]
[1743452575664,4.56358237,1836.0,1835.8,10.9568888]
[1743452577790,4.56358237,1836.0,1835.8,16.4040988]
[1743452578161,4.56358237,1836.0,1835.8,21.8511788]
[1743452578360,4.56358237,1836.0,1835.8,16.4039688]
[1743452580589,4.56358237,1836.0,1835.9,5.44691]
[1743452581085,4.56358237,1836.0,1835.8,21.8510688]
[1743452581589,4.56358237,1836.0,1835.8,16.4039688]
[1743452582388,10.01025237,1836.0,1835.8,10.1999888]
[1743452582591,4.56358237,1836.0,1835.8,10.1999888]
[1743452583193,4.56358237,1836.0,1835.8,15.6471888]
[1743452583990,4.56358237,1836.0,1835.8,21.0942788]
[1743452584195,4.56358237,1836.0,1835.8,15.6470788]
[1743452585992,4.56358237,1836.0,1835.8,15.6470588]
[1743452586164,4.56358237,1836.0,1835.8,21.0941688]
[1743452586494,4.56358237,1836.0,1835.8,15.6470588]
[1743452590918,4.56358237,1836.0,1835.8,21.0941288]
[1743452591920,4.56358237,1836.0,1835.8,15.6470588]
[1743452592523,5.44691,1835.9,1835.5,10.1999888]
[1743452592699,5.4481,1835.5,1835.2,11.0131888]
[1743452592899,4.56358237,1835.3,1835.2,6.26219]
[1743452593220,4.56358237,1835.3,1835.2,0.8132]
[1743452593430,4.56358237,1835.3,1835.1,10.2499888]
[1743452593431,10.01230237,1835.3,1835.1,10.2499888]
[1743452594418,10.01257237,1835.2,1835.1,0.05]
[1743452594991,10.56257237,1835.2,1835.1,0.05]
[1743452595705,5.4506,1834.7,1834.3,21.9163788]
[1743452595915,4.56358237,1834.4,1834.3,11.0131888]
[1743452596098,4.56358237,1834.4,1834.3,16.4648588]
[1743452599233,4.56358237,1834.4,1834.3,6.26487]
[1743452604834,4.51358237,1834.4,1834.3,6.26487]
[1743452607748,5.45035,1834.8,1834.3,0.8132]
[1743452607927,6.56553565,1834.8,1834.4,10.9023]
[1743452608227,4.56358237,1834.6,1834.4,10.9023]
[1743452608428,4.56358237,1834.6,1834.4,5.45108]
[1743452614451,9.34552304,1835.6,1834.3,9.26459]
[1743452614653,5.44938,1835.1,1834.8,5.45009]
[1743452614850,4.56358237,1834.9,1834.7,6.20715]
[1743452615163,4.56358237,1834.9,1834.7,5.45033]
[1743452616852,10.01369237,1834.9,1834.5,21.1020888]
[1743452617061,4.56358237,1834.7,1834.5,21.1020888]
[1743452617355,4.56358237,1834.7,1834.5,10.9021]
[1743452617539,4.56358237,1834.7,1834.6,5.45077]
[1743452620244,4.56358237,1834.9,1834.8,5.45018]
[1743452620752,4.56358237,1834.9,1834.7,10.90073]
[1743452621157,4.56358237,1834.9,1834.7,5.45036]
[1743452621922,4.56358237,1834.9,1834.7,10.90069]
[1743452622127,4.56358237,1834.9,1834.7,5.45033]
[1743452622560,4.56358237,1834.9,1834.7,10.9007]
[1743452622847,4.56358237,1834.9,1834.7,5.45033]
[1743452623539,4.56358237,1834.9,1834.6,11.70328]
[1743452623831,4.56358237,1834.7,1834.6,11.70328]
[1743452624959,4.56358237,1834.7,1834.6,12.11182519]
[1743452625457,4.56358237,1834.7,1834.6,5.85921519]
[1743452625833,4.56358237,1834.7,1834.6,5.45067]
[1743452627962,4.56358237,1834.9,1834.7,5.45026]
[1743452629033,4.56358237,1834.9,1834.8,5.45018]
[1743452630750,15.29562237,1835.2,1834.8,5.45018]
[1743452630751,4.56358237,1835.2,1834.8,6.28018]
[1743452630944,5.282,1835.3,1835.1,5.44929]
[1743452631144,4.56358237,1835.2,1835.1,5.44929]
[1743452631761,4.56358237,1835.2,1834.9,5.4498]
[1743452631967,4.56358237,1835.0,1834.9,5.4498]
[1743452632894,4.56358237,1835.0,1834.8,10.1999888]
[1743452633063,5.90632824,1834.9,1834.6,5.45074]
[1743452633263,4.56358237,1834.8,1834.6,5.45074]
[1743452634094,4.56358237,1834.8,1834.5,5.45103]
[1743452634275,4.56358237,1834.6,1834.5,10.90198]
[1743452634966,4.56358237,1834.6,1834.5,5.45095]
[1743452635762,4.56358237,1834.8,1834.7,5.45033]
[1743452638067,5.44881,1835.3,1834.9,5.4498]
[1743452638267,4.56358237,1835.0,1834.9,5.4498]
[1743452639522,4.56358237,1835.0,1834.8,10.90021]
[1743452639818,4.56358237,1835.0,1834.8,10.90013]
[1743452640966,4.56358237,1835.0,1834.8,5.45006]
[1743452641576,4.56358237,1835.0,1834.8,5.45003]
[1743452643174,4.56358237,1835.0,1834.8,10.90012]
[1743452643369,4.56358237,1835.0,1834.8,5.45003]
[1743452643782,5.56487161,1835.0,1834.6,21.1012888]
[1743452643977,4.56358237,1834.8,1834.6,21.1012888]
[1743452644187,4.56358237,1834.8,1834.7,5.45048]
[1743452654143,4.56358237,1835.0,1834.8,10.90022]
[1743452654285,4.56358237,1835.0,1834.8,5.45011]
[1743452655737,15.46291237,1835.0,1834.7,5.45036]
[1743452655940,11.55946361,1835.0,1834.7,5.45036]